bitfinex-derivatives/quotes_ETHF0:USTF0_20250502
["timestamp","ask_amount","ask_price","bid_price","bid_amount"]
[1746194099518,12.61302398,1834.8,1834.7,10.46]
[1746194100122,16.30902398,1834.8,1834.7,10.46]
[1746194100317,13.10187211,1834.8,1834.7,11.54971]
[1746194100623,4.80202211,1834.8,1834.7,11.54971]
[1746194101027,4.39092378,1834.8,1834.7,11.54971]
[1746194101218,0.69492378,1834.8,1834.7,13.93451]
[1746194101420,2.1961422,1834.8,1834.7,13.93451]
[1746194101620,2.19614358,1834.8,1834.7,13.93451]
[1746194101924,2.19614358,1834.8,1834.7,12.8448]
[1746194102224,2.19614358,1834.8,1834.7,10.46]
[1746194102424,4.61164358,1834.8,1834.7,10.46]
[1746194102724,16.51244358,1834.8,1834.7,0.56]
[1746194102927,1.08989,1834.4,1834.3,2.3848]
[1746194103125,1.5014598,1834.4,1834.3,4.9148]
[1746194103319,1.50164003,1834.4,1834.3,4.9148]
[1746194103520,1.50164003,1834.4,1834.3,6.00473]
[1746194103820,3.91884003,1834.4,1834.3,6.00473]
[1746194104025,3.91884003,1834.4,1834.3,4.9148]
[1746194104424,3.91884003,1834.4,1834.3,6.00475]
[1746194104621,3.91884003,1834.4,1834.3,4.9148]
[1746194104820,3.91884003,1834.4,1834.3,2.53]
[1746194105020,3.91884003,1834.4,1834.3,3.61995]
[1746194105223,3.9185328,1834.4,1834.3,3.61995]
[1746194105922,0.4114428,1834.4,1834.3,3.61995]
[1746194106128,3.693,1834.5,1834.4,1.08989]
[1746194106332,5.1940715,1834.5,1834.4,8.14639]
[1746194106719,0.4112415,1834.5,1834.4,8.14639]
[1746194106922,3.693,1834.6,1834.5,1.08983]
[1746194107131,4.10411384,1834.6,1834.5,12.96623]
[1746194107436,5.19388384,1834.6,1834.5,12.96623]
[1746194108028,5.19388384,1834.6,1834.5,6.9543]
[1746194108229,14.88477779,1834.6,1834.5,6.9543]
[1746194108630,14.88477779,1834.6,1834.5,4.43]
[1746194108831,14.88482168,1834.6,1834.5,4.43]
[1746194109434,14.88482168,1834.6,1834.5,6.9543]
[1746194110032,14.88482168,1834.6,1834.5,4.43]
[1746194110629,23.09257108,1834.6,1834.5,4.43]
[1746194111235,26.78857108,1834.6,1834.5,4.43]
[1746194111837,1.08995,1834.3,1834.2,8.41301]
[1746194112039,1.50105713,1834.3,1834.2,11.33301]
[1746194112439,1.50105713,1834.3,1834.2,10.243]
[1746194112740,5.19484313,1834.3,1834.2,2.92]
[1746194113139,7.72964313,1834.3,1834.2,2.92]
[1746194114036,7.72964313,1834.3,1834.2,5.386]
[1746194114427,7.72942076,1834.3,1834.2,7.8261]
[1746194114739,7.72942076,1834.3,1834.2,8.91611]
[1746194115139,7.72942076,1834.3,1834.2,7.8261]
[1746194115538,5.19462076,1834.3,1834.2,8.91611]
[1746194115741,3.694,1834.3,1834.2,8.91611]
[1746194116141,3.694,1834.3,1834.2,11.35141]
[1746194116939,4.78395,1834.3,1834.2,23.22141]
[1746194117243,4.78395,1834.3,1834.2,26.91741]
[1746194118041,5.19432429,1834.3,1834.2,26.91741]
[1746194118241,5.19432429,1834.3,1834.2,23.22141]
[1746194118643,4.78395,1834.3,1834.2,22.1314]
[1746194118843,4.78395,1834.3,1834.2,23.22141]
[1746194119344,3.694,1834.3,1834.2,23.22141]
[1746194120042,3.694,1834.3,1834.2,12.94141]
[1746194120434,5.19441926,1834.3,1834.2,12.94141]
[1746194121246,4.10446926,1834.3,1834.2,12.94141]
[1746194121540,7.24344289,1834.5,1834.2,12.94141]
[1746194121745,7.24344289,1834.5,1834.4,1.08989]
[1746194121948,7.24344289,1834.5,1834.4,5.95989]
[1746194123240,7.24344289,1834.5,1834.4,8.30869]
[1746194124347,3.691,1834.6,1834.5,1.08983]
[1746194124645,4.10157782,1834.6,1834.5,13.11863]
[1746194125246,5.19134782,1834.6,1834.5,13.11863]
[1746194125435,5.19134782,1834.6,1834.5,9.68]
[1746194125640,10.25074782,1834.6,1834.5,10.76983]
[1746194126347,5.19134782,1834.6,1834.5,10.76983]
[1746194126539,5.19134782,1834.6,1834.5,13.10793]
[1746194126739,4.10157782,1834.6,1834.5,13.10793]
[1746194126942,5.19134782,1834.6,1834.5,13.10793]
[1746194127247,5.1913091,1834.6,1834.5,13.10793]
[1746194127445,5.88630882,1834.6,1834.5,13.10793]
[1746194127639,0.69499972,1834.6,1834.5,13.10793]
[1746194128247,0.69499972,1834.6,1834.5,16.80393]
[1746194129245,0.69499972,1834.6,1834.5,13.10793]
[1746194131044,7.10342494,1834.7,1834.6,1.08977]
[1746194131244,7.51405941,1834.7,1834.6,15.70147]
[1746194131851,4.03212941,1834.7,1834.6,15.70147]
[1746194132048,4.03212941,1834.7,1834.6,18.18207]
[1746194132249,3.62149494,1834.7,1834.6,18.18207]
[1746194132451,7.24344289,1834.9,1834.8,1.08965]
[1746194132652,7.24344289,1834.9,1834.8,6.37965]
[1746194133053,7.24344289,1834.9,1834.8,11.10075]
[1746194134652,0.69483303,1835.0,1834.9,1.08959]
[1746194134851,0.69483303,1835.0,1834.9,16.41169]
[1746194135854,1.78436303,1835.0,1834.9,16.41169]
[1746194136356,3.00593303,1835.0,1834.9,16.41169]
[1746194137759,0.69483303,1835.0,1834.9,19.61949]
[1746194138457,9.12597649,1835.2,1835.1,1.08947]
[1746194138657,5.43497649,1835.2,1835.1,15.90947]
[1746194139059,5.43497649,1835.2,1835.1,20.73537]
[1746194140159,5.43497649,1835.2,1835.1,23.94317]
[1746194141455,4.09926432,1835.3,1835.2,1.08941]
[1746194141648,4.09926432,1835.3,1835.2,9.33411]
[1746194142054,4.09926432,1835.3,1835.2,50.13411]
[1746194143959,5.18861432,1835.3,1835.2,50.13411]
[1746194144160,7.59651432,1835.3,1835.2,50.13411]
[1746194144360,3.49725,1835.3,1835.2,50.13411]
[1746194144765,3.49725,1835.3,1835.2,46.64]
[1746194144965,5.93335,1835.3,1835.2,6.92941]
[1746194146059,4.844,1835.3,1835.2,6.92941]
[1746194146266,2.4575,1835.4,1835.3,1.08935]
[1746194146464,2.4575,1835.4,1835.3,7.91965]
[1746194146665,4.8088,1835.4,1835.3,7.91965]
[1746194147065,5.89809,1835.4,1835.3,7.91965]
[1746194148660,2.3513,1835.4,1835.3,7.91965]
[1746194148868,4.77823,1835.5,1835.4,1.08929]
[1746194149059,1.08923,1835.5,1835.4,7.21309]
[1746194149462,2.4839,1835.7,1835.4,7.21309]
[1746194149463,60.13580744,1836.1,1835.4,6.1238]
[1746194149766,5.81188,1836.0,1835.9,1.08894]
[1746194149965,5.81188,1836.0,1835.9,4.69894]
[1746194150265,9.50788,1836.0,1835.9,4.69894]
[1746194150665,8.4189,1836.0,1835.9,4.69894]
[1746194151160,4.7229,1836.0,1835.9,4.69894]
[1746194151355,5.81184,1836.0,1835.9,4.69894]
[1746194152067,4.7229,1836.0,1835.9,4.69894]
[1746194153171,5.81184,1836.0,1835.9,4.69894]
[1746194153471,5.81184,1836.0,1835.9,13.38894]
[1746194154466,4.7229,1836.0,1835.9,13.38894]
[1746194154972,4.7229,1836.0,1835.9,16.59674]
[1746194155473,5.81184,1836.0,1835.9,16.59674]
[1746194155669,5.81184,1836.0,1835.9,19.10354]
[1746194157475,4.7229,1836.0,1835.9,19.10354]
[1746194157662,5.81184,1836.0,1835.9,19.10354]
[1746194159471,5.81184,1836.0,1835.9,16.5968]
[1746194161175,4.7229,1836.0,1835.9,19.0934]
[1746194161374,5.858,1836.6,1835.9,28.44926]
[1746194161577,12.23566744,1837.0,1835.9,28.44926]
[1746194161578,9.02786744,1837.0,1836.9,1.0884]
[1746194161773,9.02786744,1837.0,1836.9,5.0884]
[1746194161973,10.11621744,1837.0,1836.9,5.0884]
[1746194162174,10.11621744,1837.0,1836.9,4.0]
[1746194162578,10.11621744,1837.0,1836.9,5.0884]
[1746194162974,11.40946744,1837.0,1836.9,5.0884]
[1746194163178,12.49781744,1837.0,1836.9,5.0884]
[1746194163787,12.49781744,1837.0,1836.9,4.0]
[1746194164184,16.19381744,1837.0,1836.9,4.0]
[1746194165174,12.49781744,1837.0,1836.9,4.0]
[1746194165688,3.46995,1837.0,1836.9,4.0]
[1746194167687,3.46995,1837.0,1836.9,5.0884]
[1746194167879,3.46995,1837.0,1836.9,4.0]
[1746194169185,7.16595,1837.0,1836.9,4.0]
[1746194169384,7.16595,1837.0,1836.9,5.0884]
[1746194169889,7.16595,1837.0,1836.9,4.0]
[1746194170091,3.46995,1837.0,1836.9,4.0]
[1746194171089,7.16595,1837.0,1836.9,4.0]
[1746194171391,20.1234,1837.0,1836.5,3.2078]
[1746194171685,20.1234,1837.0,1836.4,1.08866]
[1746194171686,1.0887,1836.5,1836.4,1.08866]
[1746194171892,1.08863,1836.6,1836.5,1.08859]
[1746194172286,2.4706,1836.6,1836.5,1.08859]
[1746194172792,3.55918,1836.6,1836.5,3.53299]
[1746194174093,2.4706,1836.6,1836.5,3.53299]
[1746194174289,5.838,1836.7,1836.6,1.08858]
[1746194174593,8.55856,1837.3,1836.8,2.72112]
[1746194174793,1.08832,1837.1,1837.0,1.08829]
[1746194175091,1.08835,1837.0,1836.9,3.54999]
[1746194175285,1.08835,1837.0,1836.9,2.4616]
[1746194175480,5.0,1837.0,1836.6,4.8564]
[1746194175687,1.08851,1836.8,1836.7,1.08847]
[1746194176085,7.22931,1836.8,1836.7,1.08847]
[1746194176293,7.22931,1836.8,1836.7,3.55007]
[1746194176885,7.22931,1836.8,1836.7,3.55012]
[1746194178102,3.53331,1836.8,1836.7,3.55012]
[1746194178389,1.08852,1836.7,1836.6,3.57084]
[1746194178594,1.08864,1836.5,1836.4,5.5618]
[1746194178791,1.08864,1836.5,1836.4,6.65045]
[1746194179597,1.08864,1836.5,1836.4,3.2078]
[1746194179791,3.67914,1836.5,1836.4,3.2078]
[1746194179990,3.67914,1836.5,1836.4,4.2965]
[1746194180192,7.37514,1836.5,1836.4,4.2965]
[1746194180893,3.696,1836.5,1836.4,4.2965]
[1746194181197,1.08864,1836.5,1836.4,4.2965]
[1746194181495,3.53494,1836.6,1836.5,1.08864]
[1746194181697,7.37507,1836.7,1836.6,1.08858]
[1746194181999,9.75067,1836.7,1836.6,1.08858]
[1746194182187,6.05467,1836.7,1836.6,1.08858]
[1746194182391,6.46474663,1836.7,1836.6,3.47588]
[1746194182701,1.08857,1836.7,1836.6,3.47588]
[1746194183400,3.67287,1836.7,1836.6,3.47588]
[1746194183699,4.083102,1836.7,1836.6,3.47588]
[1746194184509,1.08864,1836.5,1836.4,4.29645]
[1746194184690,1.08864,1836.5,1836.4,9.24865]
[1746194185089,1.08864,1836.5,1836.4,8.16]
[1746194185294,1.08864,1836.5,1836.4,3.2078]
[1746194185494,1.08864,1836.5,1836.4,4.2965]
[1746194185902,1.49929709,1836.5,1836.4,4.2965]
[1746194186402,5.19529709,1836.5,1836.4,4.2965]
[1746194186707,5.19529709,1836.5,1836.4,3.2078]
[1746194187203,7.55358796,1836.5,1836.4,3.2078]
[1746194188102,7.55358796,1836.5,1836.4,4.2965]
[1746194188707,4.10684796,1836.5,1836.4,4.2965]
[1746194188907,3.696,1836.5,1836.4,4.2965]
[1746194189105,4.76663,1836.6,1836.5,1.08864]
[1746194189305,5.17782653,1836.6,1836.5,6.01474]
[1746194189709,7.75582653,1836.6,1836.5,6.01474]
[1746194190907,4.76663,1836.6,1836.5,6.01474]
[1746194191111,4.76658,1836.6,1836.5,6.01474]
[1746194191701,5.17808499,1836.6,1836.5,6.01474]
[1746194191906,4.76658,1836.6,1836.5,6.01474]
[1746194192210,5.17811267,1836.6,1836.5,6.01474]
[1746194192411,5.17811567,1836.6,1836.5,6.01474]
[1746194192601,4.76658,1836.6,1836.5,6.01474]
[1746194192805,5.17810624,1836.6,1836.5,6.01474]
[1746194193004,1.50009726,1836.6,1836.5,6.01474]
[1746194193207,1.500097,1836.6,1836.5,6.01474]
[1746194193400,1.50011657,1836.6,1836.5,6.01474]
[1746194193602,1.08858,1836.6,1836.5,6.01474]
[1746194193802,1.50011071,1836.6,1836.5,6.01474]
[1746194194002,1.50011316,1836.6,1836.5,6.01474]
[1746194194198,1.50011923,1836.6,1836.5,6.01474]
[1746194194401,1.50011812,1836.6,1836.5,6.01474]
[1746194194718,0.41153956,1836.6,1836.5,6.01474]
[1746194194908,7.36256,1836.7,1836.6,1.08858]
[1746194195210,3.66656,1836.7,1836.6,3.56738]
[1746194195508,4.07810889,1836.7,1836.6,3.56738]
[1746194195712,4.07810854,1836.7,1836.6,3.56738]
[1746194196009,4.07812362,1836.7,1836.6,3.56738]
[1746194196205,3.66656,1836.7,1836.6,3.56738]
[1746194196509,4.07814386,1836.7,1836.6,2.4788]
[1746194196709,4.07814646,1836.7,1836.6,3.56738]
[1746194196906,3.66656,1836.7,1836.6,3.56738]
[1746194197111,7.77414697,1836.7,1836.6,3.56738]
[1746194197314,7.36256,1836.7,1836.6,3.56738]
[1746194197527,7.77413135,1836.7,1836.6,3.56738]
[1746194198016,7.77414187,1836.7,1836.6,3.56738]
[1746194198717,7.77414187,1836.7,1836.6,2.4788]
[1746194199218,4.07814187,1836.7,1836.6,2.4788]
[1746194199417,1.08858,1836.6,1836.5,3.55691]
[1746194199619,3.98876187,1836.6,1836.5,6.13821]
[1746194199818,3.98889364,1836.6,1836.5,6.13821]
[1746194200118,7.68489364,1836.6,1836.5,6.13821]
[1746194200321,1.08864,1836.5,1836.4,3.2078]
[1746194200616,6.45675364,1836.5,1836.4,4.2965]
[1746194200819,6.45691232,1836.5,1836.4,4.2965]
[1746194201118,10.15291459,1836.5,1836.4,4.2965]
[1746194201314,10.15296382,1836.5,1836.4,3.2078]
[1746194201512,10.15296057,1836.5,1836.4,3.2078]
[1746194201715,1.08882,1836.3,1836.2,1.0888]
[1746194202214,5.19662053,1836.3,1836.2,1.0888]
[1746194202416,7.65592053,1836.3,1836.2,1.0888]
[1746194202917,1.08882,1836.2,1836.1,5.95423]
[1746194203109,1.50062053,1836.2,1836.1,5.95423]
[1746194203314,1.50061342,1836.2,1836.1,5.95423]
[1746194203920,1.93019593,1836.2,1836.1,5.95423]
[1746194204124,0.84137593,1836.2,1836.1,5.95423]
[1746194204320,0.42958251,1836.2,1836.1,8.46283]
[1746194204520,0.84115955,1836.2,1836.1,8.46283]
[1746194204821,1.92997955,1836.2,1836.1,8.46283]
[1746194205027,1.92999315,1836.2,1836.1,8.46283]
[1746194206123,0.84117315,1836.2,1836.1,8.46283]
[1746194206420,0.42958251,1836.2,1836.1,8.46283]
[1746194207526,0.42958251,1836.2,1836.1,8.46282972]
[1746194209524,1.51840251,1836.2,1836.1,8.46282972]
[1746194209821,0.42958251,1836.2,1836.1,8.46282972]
[1746194210122,0.8413971,1836.2,1836.1,8.46282972]
[1746194210324,0.42958251,1836.2,1836.1,8.46282972]
[1746194210925,1.51840251,1836.2,1836.1,8.46282972]
[1746194211223,0.42958251,1836.2,1836.1,8.46282972]
[1746194211521,0.84136545,1836.2,1836.1,8.46282972]
[1746194211823,0.42958251,1836.2,1836.1,8.46282972]
[1746194212120,0.84136755,1836.2,1836.1,8.46282972]
[1746194212317,1.93020241,1836.2,1836.1,8.46282972]
[1746194212621,0.84138241,1836.2,1836.0,3.2078]
[1746194212824,1.089,1836.0,1835.9,3.67964]
[1746194213123,1.5007999,1836.0,1835.9,3.67964]
[1746194213423,4.44588241,1836.0,1835.9,2.5907]
[1746194213623,1.089,1835.9,1835.8,3.2078]
[1746194213822,6.5895999,1835.9,1835.8,3.2078]
[1746194214122,9.8738,1835.9,1835.8,3.2078]
[1746194214320,9.8738,1835.9,1835.8,1.08906]
[1746194214321,9.62618391,1835.9,1835.8,1.08906]
[1746194214521,9.62618391,1835.9,1835.8,3.58836]
[1746194215126,5.93018391,1835.9,1835.8,3.58836]
[1746194215525,3.39978391,1835.9,1835.8,3.58836]
[1746194215721,1.93038391,1835.9,1835.8,3.58836]
[1746194216620,1.93038391,1835.9,1835.8,2.4993]
[1746194216812,1.08906,1835.8,1835.7,4.29692]
[1746194217017,9.38314391,1835.8,1835.7,4.29692]
[1746194217328,9.38314391,1835.8,1835.7,3.2078]
[1746194217624,9.38314391,1835.8,1835.3,6.39739]
[1746194217625,16.01684391,1835.8,1835.3,3.2078]
[1746194217827,1.08927,1835.5,1835.4,1.08926]
[1746194218029,1.08929,1835.4,1835.3,5.7975]
[1746194218223,1.08929,1835.4,1835.3,3.2078]
[1746194218427,1.08935,1835.3,1835.2,1.0894]
[1746194218625,5.92185,1835.3,1835.2,1.0894]
[1746194218819,1.08941,1835.2,1835.1,9.44953]
[1746194219019,3.95169251,1835.2,1835.1,9.44953]
[1746194219421,3.95169251,1835.2,1835.1,5.7975]
[1746194219630,1.08953,1835.0,1834.9,14.02442547]
[1746194219920,1.08953,1835.0,1834.9,7.27215547]
[1746194220128,1.51911251,1835.0,1834.9,7.27215547]
[1746194220322,3.89011251,1835.0,1834.9,7.27215547]
[1746194220522,3.89011251,1835.0,1834.9,10.81660547]
[1746194220726,2.80058251,1835.0,1834.9,10.81660547]
[1746194221530,10.52446251,1835.0,1834.6,3.2078]
[1746194221828,1.08969,1834.8,1834.7,1.0897]
[1746194222028,1.51927251,1834.8,1834.7,1.0897]
[1746194222231,3.89027251,1834.8,1834.7,3.5446]
[1746194222425,3.89027251,1834.8,1834.7,2.4549]
[1746194222625,1.08971,1834.7,1834.6,3.2078]
[1746194222832,6.17831,1834.7,1834.6,4.29757]
[1746194223025,6.60789251,1834.7,1834.6,4.29757]
[1746194223227,5.51818251,1834.7,1834.6,4.29757]
[1746194223426,2.88778251,1834.7,1834.6,4.29757]
[1746194223727,0.42958251,1834.7,1834.6,4.29757]
[1746194224431,3.675,1834.8,1834.7,1.08971]
[1746194224630,4.76465,1834.8,1834.7,2.515]
[1746194224833,1.08971,1834.7,1834.6,3.2078]
[1746194225027,1.0898,1834.6,1834.5,1.08982]
[1746194225331,1.51613532,1834.6,1834.4,8.57884]
[1746194225626,1.08989,1834.4,1834.3,3.2078]
[1746194225830,2.4582,1834.5,1834.3,3.2078]
[1746194225831,7.22408,1834.5,1834.3,3.2078]
[1746194226030,1.08989,1834.4,1834.3,3.2078]
[1746194226234,1.09014,1834.0,1833.6,2.72581]
[1746194226532,3.56979,1833.9,1833.8,1.09019]
[1746194226733,2.4796,1833.9,1833.8,1.09019]
[1746194226935,3.56979,1833.9,1833.8,1.09019]
[1746194227432,2.4796,1833.9,1833.8,1.09019]
[1746194227825,3.56979,1833.9,1833.8,1.09019]
[1746194228529,2.4796,1833.9,1833.7,2.5019]
[1746194228733,2.4796,1833.9,1833.8,1.09024]
[1746194229231,7.26583,1833.9,1833.8,1.09024]
[1746194229425,7.26583,1833.9,1833.7,3.58346]
[1746194229730,1.09024,1833.8,1833.7,3.58346]
[1746194229931,3.5956,1833.8,1833.6,2.4337]
[1746194230130,3.5956,1833.8,1833.7,1.0903]
[1746194230326,1.0903,1833.7,1833.6,2.4932]
[1746194230533,1.09038,1833.6,1833.5,1.09037]
[1746194230727,4.29818,1833.6,1833.5,1.09037]
[1746194230930,7.97518,1833.6,1833.5,1.09037]
[1746194231129,6.8848,1833.6,1833.5,1.09037]
[1746194233939,7.97516,1833.6,1833.5,1.09037]
[1746194234241,10.57086,1833.6,1833.5,1.09037]
[1746194234434,9.4805,1833.6,1833.5,1.09037]
[1746194237343,10.57086,1833.6,1833.5,1.09037]
[1746194237544,1.09047,1833.5,1833.4,1.09044]
[1746194237746,1.09048,1833.4,1833.3,1.09049]
[1746194237946,2.6302,1833.4,1833.3,1.09049]
[1746194238648,2.4411,1833.5,1833.4,1.09048]
[1746194238952,7.97521,1833.6,1833.5,1.09042]
[1746194239155,6.8848,1833.6,1833.5,1.09042]
[1746194239952,6.8848,1833.6,1833.5,3.53442]
[1746194240542,3.2078,1833.6,1833.5,3.53442]
[1746194242352,1.09042,1833.5,1833.4,3.66334]
[1746194242546,3.78262,1833.5,1833.4,1.09044]
[1746194244051,4.20668619,1833.5,1833.4,1.09044]
[1746194250964,4.61575755,1833.5,1833.4,1.09044]
[1746194251262,1.0906,1833.3,1833.2,1.09055]
[1746194251559,6.77663,1833.4,1833.3,1.09054]
[1746194251758,1.09054,1833.3,1833.2,1.09055]
[1746194251962,1.09066,1833.2,1833.1,1.09061]
[1746194252152,4.08555531,1833.2,1833.1,1.09061]
[1746194252453,6.99103927,1833.2,1833.1,1.09061]
[1746194253862,5.90064729,1833.2,1833.1,1.09061]
[1746194254453,6.99124729,1833.2,1833.1,1.09061]
[1746194255162,1.09066,1833.1,1833.0,3.72397]
[1746194255463,2.96316333,1833.1,1833.0,3.72397]
[1746194255761,3.39034729,1833.1,1833.0,3.72397]
[1746194256256,4.48100729,1833.1,1833.0,1.09067]
[1746194256559,3.39034729,1833.1,1833.0,1.09067]
[1746194257260,4.48100729,1833.1,1833.0,1.09067]
[1746194257462,3.39190958,1833.1,1832.7,5.1098]
[1746194257664,1.0908,1832.9,1832.8,2.5651]
[1746194257859,1.09084,1832.8,1832.7,2.6084]
[1746194258164,1.0909,1832.7,1832.6,3.65603]
[1746194258363,7.84352562,1832.7,1832.6,3.65603]
[1746194258563,10.91350958,1832.7,1832.6,2.5651]
[1746194258754,10.91350958,1832.7,1832.5,1.09097]
[1746194258755,1.09096,1832.6,1832.5,1.09097]
[1746194258958,4.02288562,1832.6,1832.5,3.61667]
[1746194259160,3.35910958,1832.6,1832.5,3.61667]
[1746194259456,0.83854888,1832.6,1832.5,3.61667]
[1746194260060,0.83854888,1832.6,1832.5,7.31267]
[1746194260968,5.13730888,1832.6,1832.5,3.696]
[1746194261165,10.29914761,1832.6,1832.5,1.09102]
[1746194261369,1.09102,1832.5,1832.4,3.61673]
[1746194261560,4.44950761,1832.5,1832.4,3.61673]
[1746194262262,4.44950761,1832.5,1832.4,2.5257]
[1746194262469,4.44950761,1832.5,1832.4,1.09108]
[1746194262954,4.44913594,1832.5,1832.4,1.09108]
[1746194264366,3.35811594,1832.5,1832.4,1.09108]
[1746194264767,0.83771594,1832.5,1832.4,1.09108]
[1746194265161,6.9407,1832.6,1832.4,1.09108]
[1746194265162,3.675,1832.7,1832.6,1.09096]
[1746194265371,10.13664,1832.8,1832.7,1.0909]
[1746194265668,3.61810547,1832.8,1832.7,1.0909]
[1746194266268,3.2078,1832.8,1832.7,7.3101]
[1746194266469,13.12236,1833.0,1832.9,1.09078]
[1746194266769,8.38495659,1833.0,1832.9,1.09078]
[1746194268169,7.29419659,1833.0,1832.9,1.09078]
[1746194268370,6.8838,1833.0,1832.9,1.09078]
[1746194268567,4.29852,1833.0,1832.9,1.09078]
[1746194269266,4.29852,1833.0,1832.8,2.5232]
[1746194269464,1.09078,1832.9,1832.8,3.61399]
[1746194269665,3.97103951,1832.9,1832.8,3.61399]
[1746194270166,1.09096,1832.7,1832.6,1.09094]
[1746194270364,1.50150955,1832.7,1832.6,3.66454]
[1746194270565,0.41052325,1832.7,1832.6,3.66454]
[1746194270770,9.16958,1832.8,1832.7,1.0909]
[1746194270975,9.58009781,1832.8,1832.7,3.6645]
[1746194271774,9.58005781,1832.8,1832.7,3.6645]
[1746194272674,6.37225781,1832.8,1832.7,3.6645]
[1746194273676,1.0909,1832.7,1832.6,1.09092]
[1746194273870,3.89831781,1832.7,1832.6,1.09092]
[1746194274067,10.03715459,1832.7,1832.6,1.09092]
[1746194274267,10.03715459,1832.7,1832.5,7.2881]
[1746194274268,1.09096,1832.6,1832.5,8.37908]
[1746194274466,3.95851459,1832.6,1832.5,3.52288]
[1746194274778,3.95851459,1832.6,1832.5,1.09098]
[1746194275169,1.09108,1832.5,1832.4,1.09107]
[1746194275368,3.95858185,1832.5,1832.4,1.09107]
[1746194275769,3.95854501,1832.5,1832.4,1.09107]
[1746194276374,3.95854501,1832.5,1832.4,3.67747]
[1746194276675,2.86746501,1832.5,1832.4,3.67747]
[1746194277269,3.95848501,1832.5,1832.4,3.67747]
[1746194277469,2.86746501,1832.5,1832.4,3.67747]
[1746194277674,2.86749546,1832.5,1832.4,3.67747]
[1746194277976,3.95851546,1832.5,1832.4,3.67747]
[1746194278771,4.29878,1832.6,1832.5,1.09102]
[1746194278979,4.70943113,1832.6,1832.5,3.58532]
[1746194279277,4.29876,1832.6,1832.5,3.58532]
[1746194279469,3.2078,1832.6,1832.5,3.58532]
[1746194280274,7.24439649,1832.7,1832.6,1.09096]
[1746194280470,7.24439649,1832.7,1832.6,3.74046]
[1746194280876,3.57439649,1832.7,1832.6,3.74046]
[1746194281478,3.57439649,1832.7,1832.6,8.74046]
[1746194281780,4.66517649,1832.9,1832.8,1.09084]
[1746194282075,3.57439649,1832.9,1832.8,1.09084]
[1746194282278,4.66517649,1832.9,1832.8,3.74034]
[1746194282474,3.98557805,1832.9,1832.8,3.74034]
[1746194282678,3.57439649,1832.9,1832.8,3.74034]
[1746194283685,4.66517649,1832.9,1832.8,3.74034]
[1746194283876,3.57439649,1832.9,1832.8,3.74034]
[1746194284282,3.98571329,1832.9,1832.8,3.74034]
[1746194284583,5.07649329,1832.9,1832.8,3.74034]
[1746194285082,3.98571329,1832.9,1832.8,3.74034]
[1746194285485,1.09078,1832.9,1832.8,3.74034]
[1746194285685,0.41132644,1832.9,1832.8,3.74034]
[1746194285884,7.96956,1833.0,1832.9,1.09078]
[1746194286183,8.38089624,1833.0,1832.9,3.68278]
[1746194286888,7.29013624,1833.0,1832.9,3.68278]
[1746194287184,4.08233624,1833.0,1832.9,3.68278]
[1746194287383,6.78219649,1833.2,1833.1,1.09066]
[1746194287576,7.19351732,1833.2,1833.1,1.09066]
[1746194287778,3.98566997,1833.2,1833.1,1.09066]
[1746194287978,3.98559889,1833.2,1833.1,6.23786]
[1746194288285,3.9855325,1833.2,1833.1,6.23786]
[1746194288486,3.57439649,1833.2,1833.1,6.23786]
[1746194288985,3.57439649,1833.2,1833.1,11.23786]
[1746194289386,3.57439649,1833.2,1833.1,6.23786]
[1746194290190,6.03509649,1833.2,1833.1,6.23786]
[1746194290985,7.1695782,1833.2,1833.1,1.09066]
[1746194291187,9.6241782,1833.2,1833.1,1.09066]
[1746194291590,9.62417004,1833.2,1833.1,1.09066]
[1746194292687,1.09066,1833.1,1833.0,1.09068]
[1746194292888,6.54593004,1833.1,1833.0,1.09068]
[1746194293089,6.54596278,1833.1,1833.0,1.09068]
[1746194293481,2.4778,1833.1,1833.0,1.09068]
[1746194293687,6.02899649,1833.2,1833.1,1.09066]
[1746194293892,3.57439649,1833.2,1833.1,1.09066]
[1746194294491,3.57439649,1833.2,1833.1,8.52226]
[1746194297596,6.7599,1833.4,1833.3,1.09054]
[1746194297894,5.6694,1833.4,1833.3,1.09054]
[1746194298495,6.75988,1833.4,1833.3,1.09054]
[1746194300300,7.17045253,1833.4,1833.3,1.09054]
[1746194300698,6.07997253,1833.4,1833.3,1.09054]
[1746194301001,7.17044463,1833.4,1833.3,1.09054]
[1746194302601,7.1704392,1833.4,1833.3,1.09054]
[1746194304406,7.17056555,1833.4,1833.3,1.09054]
[1746194304904,1.09075,1833.1,1833.0,1.09068]
[1746194305208,1.50144154,1833.1,1833.0,1.09068]
[1746194305504,6.57304154,1833.1,1833.0,1.09068]
[1746194308001,10.14743803,1833.1,1833.0,1.09068]
[1746194308207,10.1480488,1833.1,1833.0,1.09068]
[1746194308806,10.1479588,1833.1,1833.0,1.09068]
[1746194309809,1.09078,1833.0,1832.9,1.09073]
[1746194310007,6.5629683,1833.0,1832.9,1.09073]
[1746194311211,1.09084,1832.9,1832.8,1.09079]
[1746194311411,3.9936283,1832.9,1832.8,1.09079]
[1746194311914,2.9027883,1832.9,1832.8,1.09079]
[1746194313411,2.9027883,1832.9,1832.8,3.56439]
[1746194313611,2.9027082,1832.9,1832.8,3.56439]
[1746194314817,3.9934882,1832.9,1832.8,3.56439]
[1746194315413,2.90275128,1832.9,1832.8,3.56439]
[1746194315914,3.99353128,1832.9,1832.8,3.56439]
[1746194316108,2.90275128,1832.9,1832.8,3.56439]
[1746194316308,0.41165128,1832.9,1832.8,3.56439]
[1746194316509,3.57439649,1833.0,1832.9,1.09078]
[1746194316710,3.98605513,1833.0,1832.9,3.65498]
[1746194317217,3.9860369,1833.0,1832.9,3.65498]
[1746194318720,3.57439649,1833.0,1832.9,3.65498]
[1746194319413,3.57439649,1833.0,1832.9,7.35098]
[1746194319619,3.57439649,1833.0,1832.9,12.35098]